{"text_format":"1","workbook":"xlsx","n_sheets":2,"sheets":["Лист1","Лист2"],"not_rendered":{"charts":0,"images":0,"macros":1,"external_links":0,"defined_names":2,"comments":0,"pivot_tables":0},"unopened":[],"bounds":{"document_bytes":16777216,"sheet_cells":100000,"rows_first":2000,"rows_last":500,"rows_between":2000,"halvings":0,"cell_chars":16384,"cell_head_chars":4096},"cells_cut":0,"cells_raw":0,"read":"whole","date_system":"1900"}

{"sheet":"Лист1","index":0,"n_rows":97,"n_cols":7,"rows_kept":97,"cut":false,"hidden":false,"merged":[[8,0,9,5],[11,1,11,3]]}
[null,null,null,null,null,"«УТВЕРЖДАЮ»"]
[null,null,null,null,null,"Директор ДЭиБПД"]
[null,null,null,null,null,"АО «Коломенский Завод»"]
[null,null,null,null,null,"______________   Степанкевич В.С."]
[]
[]
[null,null,null,null,null,"от «___»   ________  2025_ г."]
[]
["Ведомость объемов работ \nОбъект: «Реконструкция М-14 Инв. 530000149 ( устройство фасада)»  \n"]
[]
["№","Вид работ","Ед. измер","Объем","Формула расчета","Примечание"]
[null,"«Реконструкция М-14 Инв. 530000149 ( устройство фасада)»"]
[1,"Демонтаж существующих светильников массой 1,5кг каждый (для последующего монтажа)","шт",6,null,"на высоте 5м "]
[2,"Демонтаж оцинкованного короба 50х50  (для последующего монтажа)","кг /м","255 / 132,6",null,"вес 1мп=1,923кг"]
[3,"Демонтаж стеновых сэндвич-панелей толщ. 80мм (270шт.)","м2",2080,null,"вес мусора=26,84кг*2080м2/1000=55,83т",{"$f":"55.83+1.053+0.324+0.72+3.2+1.44+4.39+64.56","v":131.517}]
[4,"Разборка примыканий из 2-х слоев рубероида к парапетам высотой не менее 100мм","м.п./м2","270/27",null,"вес мусора=270*0,5*0,78/100=1,053т"]
[5,"Демонтаж отливов парапета шириной 250мм","м.п.",270,null,"вес мусора=0,324т"]
[6,"Демонтаж металлических козырьков над воротами","т",0.72,null,"вес мусора=0,72т"]
[7,"Демонтаж металлических эвакуационных лестниц с ограждением","шт / т","4 / 3,2",null,"вес мусора=3,2т"]
[8,"Демонтаж кирпичной кладки ","м3",0.8,null,"вес мусора=1,8*0,8=1,44т"]
[9,"Демонтаж существующих алюминиевых оконных витражей:     82950х4790(h), S=267,0м2; 3030х1220(h), S=3,7м2; 2300х4790(h), S= 11,02м2; 9020х4790(h), S= 25,5м2; 2990х1230(h), S=3,68м2; 6770х4790(h), S= 32,43м2; 7540х4790(h), S=20,45м2; 6860х4790(h), S=32,86м2; 7590х4790(h), S= 20,2м2; 82510х4790(h), S=381,2м2.","т / м2","4,39 / 798,04",null,"вес мусора=4,39т"]
[10,"Разборка асфальто-бетонной отмости толщ. 100мм шириной 1000мм","м2 / м3","269 / 26,9",null,"вес мусора==26,9*2,4=64,56т"]
[11,"Выемка грунта 2 группы экскаваторами с ковшом вместимостью 0,5м3 под устройство новой отмостки с погрузкой","м3",{"$f":"88*0.97","v":85.36}]
[12,"Разработка грунта вручную,  группа грунтов: 2","м3",{"$f":"88*0.03","v":2.6399999999999997}]
[13,"Погрузка грунта при разработке вручную","м3",2.64,null,"85,36+2,64=88м3"]
[14,"Погрузка мусора вручную","т",13.1517]
[15,"Погрузка мусора экскаватором ","т",118.3653]
[16,"Перевозка металла автомобилями-самосвалами грузоподъемностью 10 т  на расстояние до 1 км ","т",4.2439999999999998,null,"на территории заказчика 0,324т+0,72т+3,2т"]
[17,"Перевозка мусора автомобилями-самосвалами грузоподъемностью 10 т  на расстояние до 47 км ","т",{"$f":"D26+D27+D25*1.75-D28","v":131.893}]
[18,"Утилизация мусора","т",{"$f":"D29","v":131.893}]
[null,"Устройство отмостки"]
[19,"Подсыпка песка с уплотнением ручными трамбовками","м2 / м3","269 / 53,8"]
[20,"Устройство отмостки из бетона B25 F200 W6 ","м3",31]
[21,"Устройство деформационных швов в отмостке","м",312,null,"Герметик силиконовый универсальный  (Объем 1 шт. 310мл) – 104шт/32,24л\nТеплоизоляционный шнур типа Вилатерм (40мм) 312 м\n"]
[22,"Устройство вертикальной битумной гидроизоляции отмостки в 2 слоя","м2",135,null,"Битумная мастика холодная ГОСТ 32870-2014 – 338кг"]
[23,"Установка бортового камня БР 100 20.8  на бетонное основание","шт",273,null,"Бетон кл. B25 F200 W6 ГОСТ 26633-2015 -15м3"]
[null,"Ремонтно-восстановительные работы на фасаде"]
[24,"Устройство металлических лестниц заводской готовности","т",3.2,null,"Вес одной лестницы 800 кг. Общий вес 4 лестниц составляет 3,2 т"]
[25,"Устройство крепления лестниц ","т",0.18,null,"уголок 75*6 С245 (5 креплений на 1 лестницу)"]
[null,"Восстановление окраски металлоконструкций по оси \"А\" до отм.+7,05:"]
[26,"Очистка поверхности щетками","м2",125]
[27," Обеспыливание","м2",125]
[28,"Обезжиривание уайт-спиритом","м2",125]
[29,"Нанесение антикоррозионной защиты грунт-эмалью  Prodecor 1202 ","м2",125,null,"расход 500гр/м2"]
[30,"Ремонт части стены толщиной 380мм из кирпича КРО 175/75 на цементном растворе М75 ","м2 / м3","2,1 / 0,8"]
[null,"Ремонт разрушенных участков кирпичных стен:"]
[31,"Очистка поверхности пескоструйным аппаратом, обеспыливание","м2",53]
[32,"Обработка раствором медного купороса марки А от грибка и плесени","м2",53,null,"расход 1кг/10м2"]
[33,"Нанесение грунтовки грубокого проникновения","м2",53]
[34,"Ремонт штукатурного слоя 30 мм цементно-известковым раствором М100  морозостойкостью марки не менее F100 ","м2",53]
[null,"Заделка трещин в кирпичных стенах:",null,null,null,"длина 4м, толщина 1мм"]
[35,"Очистка поверхности сжатым воздухом, ","м2",{"$f":"4*0.001","v":4.0000000000000001E-3}]
[36,"Заделка трещин в кирпичных стенах инъецированием полимерцементного раствора. При приготовлении полимерцементного раствора добавить 5% ПВА или латекса СКС65-ГП от веса цемента","м",4,null,"расход смеси 1,7 кг/м² на 1мм толщины","какая толщина шва, сколько м2?"]
[37,"Монтаж каркаса  металлического навеса из труб стальных квадратных, размер стороны 30мм,  толщина стенки 3мм (0,3т)  и проката листового толщиной 4мм (0,03т)","т",{"$f":"0.3+0.03","v":0.32999999999999996},null,"Трубы стальные квадратные. Сортамент по ГОСТ 8639-82 Тр. 30х30х3 -0,3т,\nПрокат листовой горячекатаный ГОСТ19903-2015 толщ. 4мм -0,03т"]
[38,"Монтаж кровельного покрытия навеса из профилированного листа  полиэстер НС35-1000-0,6","т / м2","0,1 / 15,63",null,"нахлест 1,1"]
[null,"Восстановление защитного покрытия металлических ворот и дверей:"]
[39,"Очистка поверхности щетками","м2",151]
[40," Обеспыливание","м2",151]
[41,"Обезжиривание уайт-спиритом","м2",151]
[42,"Нанесение антикоррозионной защиты грунт-эмалью  Prodecor 1202 ","м2",151,null,"расход 500гр/м2"]
[null,"Устройство стеновых панелей ПС1 (266шт), ПС2 (14шт), ПС3(14шт), ПС4 (14шт)  в осях П-А на отм.от +5,91м до +14,06м"]
[43,"Монтаж металлических конструкций каркаса обшивки стен","т",4.9400000000000004,null,"Профили стальные гнутые замкнутые сварные квадратные и прямоугольные для строительных конструкций по ГОСТ 30245-2012.   Гн.  120х80х4  3,77т \nУголки равнополочные по ГОСТ 8509-93 L75х6  0,77т\nПрокат листовой горячекатаный ГОСТ19903-2015 толщ. 10мм 0,07 т\nПрокат листовой горячекатаный ГОСТ19903-2015 толщ. 6мм 0,26т\nПрокат листовой горячекатаный ГОСТ19903-2015 толщ. 4мм 0,07 т"]
[44,"Монтаж стеновых панелей ПС1, ПС2 , ПС3, ПС4  ","м2",2225.7800000000002,null,"ТСП-Z-150-1190-Т-Т-МВ (ПЭ- RAL3012 -0.5/ПЭ- RAL9003-0.5) -1 кл. ГОСТ 32603-2021 L=5980мм- 1892,91 М2 (266 шт. х 1,19м х 5,980м)\n ТСП-Z-150-1190-Т-Т-МВ (ПЭ- RAL3012 -0.5/ПЭ- RAL9003-0.5) -1 кл. ГОСТ 32603-2021 L=7020мм -116,95 М2 (14 шт. х 1,19м х 7,020м)\nТСП-Z-150-1190-Т-Т-МВ (ПЭ- RAL3012 -0.5/ПЭ- RAL9003-0.5) -1 кл.  ГОСТ 32603-2021L=6660мм- 110,96 М2 (14 шт. х 1,19м х 6,660м)\nТСП-Z-150-1190-Т-Т-МВ (ПЭ- RAL3012 -0.5/ПЭ- RAL9003-0.5) -1 кл. ГОСТ 32603-2021 L=6300мм- 104,96м2 (14 шт. х 1,19м х 6,300м)\nСамонарезающий шуруп 5,5х185 с ЭПДМ-прокладкой - 1850 Шт.\nСаморезы 4,8х28 с ЭПДМ-прокладкой 1500шт.\n\n"]
[45,"Установка фасонных элементов из оцинкованной стали А-О-0,5 ГОСТ 19904-90 с полимерным покрытием","м2",478.08]
[46,"Заделка швов панелей герметиком ","м",1800,null,"Герметик силиконовый универсальный  (Объем 1 шт. 310мл)-300шт./93л"]
[47,"Заделка швов панелей уплотняющей лентой","м",1800,null,"Лента уплотняющая самоклеющая 3х50 -1800м"]
[48,"Устройство наплавляемых примыканий к существующей кровле, с утеплением плитами ПЖ-120 и герметизацией стыков","м / м2","283 / 141,5",null,"Рулонный кровельный гидроизоляционный материал К-ПХ-БЭ-ПП/ПП-3,5 (или Техноэласт ЭПП)  – 142 м2"]
[49,"Утепление примыканий  плитами ПЖ-120 ","м2 / м3","41/ 4,1",null,"- Плита минераловатная ПЖ-120(НГ)-600.500.100 ГОСТ 9573-2012 -4,1 м3"]
[50,"Герметизацией стыков герметиком","м",283,null,"-Герметик силиконовый стойчивый к УФ-излучению (310мл) 60шт"]
[51,"Монтаж светильников (ранее демонтированных) на фасаде на закладных деталях на высоте 5м","шт",6]
[52,"Монтаж оцинкованного короба 50х50 (ранее демонтируемого)  на высоте 5м с герметизацией швов","кг /м","255 / 132,6",null,"саморезы для крепления\n∅4,8х19 с ЭПДМ-прокладкой  - 600шт"]
[53,"Герметизация короба с двух сторон","м",250,null,"лента уплотняющая самоклеящаяся 3х50  - 250м"]
[null,"Устройство вентфасада в осях П-А на отм. от 0,00м до +5,91м"]
[54,"Устройство утепления фасада ","м2",656,null,"плиты минераловатные ПТМ СТБ 1995-2009-Т4-DS(23,90)1-CS(10)10-TR5-WS1 λ=0.0406Вт/мС°, р=75кг/м3 толщ. 100мм"]
[55,"Зашивка фасада профилированным листом (сайдингом)","м2",706]
[null,"Устройство низа вентфасада (цоколя):"]
[56," Устройство бетонной подготовки В3,5 F50 W2","м3",2.5]
[57,"Изоляция зкструзионным пенополистиролом 100мм XPS-T2-DS(70.90)-DLT(2)5-CS(10/Y)300-CC(2/1.5/50)100-WD(V)3-WL(T)-MU150-FT2 с креплением на клее  холодных поверхностей: наружных стен","м2 ",62.5]
[null,"Усиление кладки на фасаде в осях П-А"]
[58,"Кладка отдельных участков кирпичных стен из кирпича на растворе М100","м3",0.4]
[59,"Усиление кладки методом установки анкеров в отверстия глубиной 300 мм с применением составов на цементно-эпоксидной основе","шт",10]
[null,"Установка оконного остекления фасада"]
[60,"Устройство ПВХ оконных блоков  с установкой  креплений"," м2",794.2,null,"Оконные блоки Proplex-Basis 58мм 3х камерная система. Цвет профиля внешний белый, внутренний белый, заполнение стеклопакет 1-камерный 26мм"]
[61,"Установка оконных отливов ","м.п./м2","208,7  / 63",null,"Отливы RAL 7004 металл с полимерным покрытием"]
[]
[]
[]
[null,"Составил:"]
[]
[null,"     Ведущий специалист ОпС АО \"Коломенский Завод\"                                                                        ",null,null,"Самойлов А.О."]
[null,"                                                      (должность)                                                                                                                                                                                    ",null,null,"(подпись)                              (ФИО)"]
[null,"\"25\" марта 2025 г. "]
[]
[null,"Проверил:"]
[null,"Начальник отдела по строительству АО \"Коломенский Завод\"  "]
[null,"                                                      (должность)                                                                                                                                               ",null,null,"Губанов П.В."]
[null,"\"25\" марта 2025 г. ",null,null,"(подпись)                               (ФИО)"]

{"sheet":"Лист2","index":1,"n_rows":26,"n_cols":17,"rows_kept":26,"cut":false,"hidden":false,"merged":[]}
[]
[]
[]
[]
[]
[null,8.4749999999999996,{"$f":"(0.45*4)","v":1.8},{"$f":"C6/0.2","v":9},{"$f":"(D6*B6)*2","v":152.54999999999998}]
[null,8.8000000000000007,{"$f":"24-(0.45*4)","v":22.2},{"$f":"C7/0.2","v":110.99999999999999},{"$f":"(D7*B7)*2","v":1953.6},null,{"$f":"E7+E6","v":2106.15}]
[null,null,null,null,null,null,{"$f":"E9+E10","v":2052.1187499999996}]
[null,5.5750000000000002,{"$f":"0.325","v":0.32500000000000001},{"$f":"C9/0.2","v":1.625},{"$f":"(D9*B9)*2","v":18.118750000000002}]
[null,24,{"$f":"8.475","v":8.4749999999999996},{"$f":"C10/0.2","v":42.374999999999993},{"$f":"(D10*B10)*2","v":2033.9999999999995},null,0.88800000000000001,{"$f":"((E6+E7+E9+E10)*G10)*0.001","v":3.6925426499999996}]
[]
[]
[]
[null,null,null,null,null,null,null,{"$f":"0.25*0.125*0.025","v":7.8125000000000004E-4},null,null,null,null,null,null,{"$f":"3.14*0.84","v":2.6375999999999999}]
[]
[null,null,null,null,null,null,null,null,{"$f":"H14*61","v":4.7656250000000004E-2},null,null,null,null,null,{"$f":"0.125*4","v":0.5}]
[null,null,null,null,null,null,null,null,null,{"$f":"I16*3","v":0.14296875000000001}]
[null,null,null,null,1,0.2,{"$f":"E18/F18","v":5},null,null,null,{"$f":"J17*2","v":0.28593750000000001},null,null,null,{"$f":"O14*O16","v":1.3188},null,{"$f":"O18*2","v":2.6375999999999999}]
[null,null,null,null,1,0.2,{"$f":"E19/F19","v":5},{"$f":"(G18+G19)*G10","v":8.8800000000000008}]
[]
[]
[]
[]
[]
[null,{"$f":"382060/19103","v":20}]
[null,{"$f":"477575/19103","v":25}]